bitfinex/quotes_BTCUSD_20250219
["timestamp","ask_amount","ask_price","bid_price","bid_amount"]
[1739988498079,0.35393888,96406.0,96405.0,0.00055699]
[1739988498511,0.80306888,96406.0,96405.0,0.00055699]
[1739988500393,0.34630466,96406.0,96405.0,0.00055699]
[1739988500860,0.44843166,96406.0,96405.0,0.00055699]
[1739988501146,0.34630466,96406.0,96405.0,0.00055699]
[1739988504014,0.33004665,96406.0,96405.0,0.00055699]
[1739988504450,1.04115665,96406.0,96405.0,0.00055699]
[1739988505289,0.154,96406.0,96405.0,0.00055699]
[1739988505517,0.309591,96406.0,96405.0,0.04705699]
[1739988506178,0.307591,96406.0,96405.0,0.04705699]
[1739988506382,0.308591,96406.0,96405.0,0.04705699]
[1739988506745,0.306591,96406.0,96405.0,0.04705699]
[1739988506950,0.307591,96406.0,96405.0,0.04705699]
[1739988507324,1.293327,96406.0,96405.0,0.00055699]
[1739988507817,1.281604,96406.0,96405.0,0.00055699]
[1739988511818,0.305609,96395.0,96394.0,0.0004256]
[1739988512024,0.73804,96395.0,96394.0,0.00055667]
[1739988512231,0.72859,96395.0,96394.0,0.00055667]
[1739988512679,0.5850732,96395.0,96394.0,0.00055667]
[1739988512886,0.1718672,96395.0,96394.0,0.00055667]
[1739988513089,0.3248672,96395.0,96394.0,0.00055667]
[1739988513396,0.7208062,96395.0,96394.0,0.00055667]
[1739988513619,0.3228672,96395.0,96394.0,0.00055667]
[1739988513830,0.31889717,96395.0,96394.0,0.00055667]
[1739988514251,0.88261617,96395.0,96394.0,0.00055667]
[1739988514579,0.97185417,96395.0,96394.0,0.00055667]
[1739988516095,0.68166809,96395.0,96394.0,0.00055667]
[1739988516325,0.82185417,96395.0,96394.0,0.00055667]
[1739988516891,0.83811254,96395.0,96394.0,0.00055667]
[1739988518183,0.18515554,96395.0,96394.0,0.00055667]
[1739988518388,1.29760854,96395.0,96394.0,0.00055667]
[1739988518601,1.26626154,96395.0,96394.0,0.00055667]
[1739988523662,1.40000317,96395.0,96394.0,0.00055667]
[1739988526124,1.04921317,96395.0,96394.0,0.00055667]
[1739988526331,0.99817817,96395.0,96394.0,0.00055667]
[1739988527256,1.01443683,96395.0,96394.0,0.00055667]
[1739988528720,0.33515583,96395.0,96394.0,0.00055667]
[1739988528922,1.47994283,96395.0,96394.0,0.00055667]
[1739988529566,1.40472883,96395.0,96394.0,0.00055667]
[1739988533847,1.38847017,96395.0,96394.0,0.00055667]
[1739988536912,0.305633,96380.0,96379.0,0.0144913]
[1739988537109,0.305633,96380.0,96379.0,0.01453483]
[1739988537321,0.305633,96380.0,96379.0,0.01578587]
[1739988537537,0.305633,96380.0,96379.0,0.01453483]
[1739988538115,0.306633,96380.0,96379.0,0.01453483]
[1739988538337,0.32189327,96380.0,96379.0,0.01453483]
[1739988538750,0.32689327,96380.0,96379.0,0.01453483]
[1739988539352,0.32789327,96380.0,96379.0,0.01453483]
[1739988539752,0.32489327,96380.0,96379.0,0.01453483]
[1739988540160,0.32589327,96380.0,96379.0,0.01453483]
[1739988541507,0.34531166,96380.0,96379.0,0.01453483]
[1739988542661,0.36594736,96380.0,96379.0,0.01453483]
[1739988543707,0.34968709,96380.0,96379.0,0.01453483]
[1739988543912,2.69945109,96380.0,96379.0,0.01453483]
[1739988544121,2.56013909,96380.0,96379.0,0.01453483]
[1739988544328,0.305642,96375.0,96370.0,0.0753]
[1739988544528,0.901649,96375.0,96374.0,0.00055657]
[1739988544728,0.837258,96375.0,96374.0,0.00055657]
[1739988544936,0.85667639,96375.0,96374.0,0.00055657]
[1739988545351,0.76048339,96375.0,96374.0,0.00055657]
[1739988546257,0.744065,96375.0,96374.0,0.00055657]
[1739988546722,0.741065,96375.0,96374.0,0.00055657]
[1739988546922,0.71360268,96375.0,96374.0,0.00055657]
[1739988547128,0.32490468,96375.0,96374.0,0.00055657]
[1739988547343,0.32490468,96375.0,96374.0,0.12595657]
[1739988547344,0.01926268,96375.0,96374.0,0.12595657]
[1739988547549,0.17490468,96375.0,96374.0,0.1272132]
[1739988547805,0.17690468,96375.0,96374.0,0.1272132]
[1739988548159,0.17490468,96375.0,96374.0,0.1272132]
[1739988549365,0.17190468,96375.0,96374.0,0.1272132]
[1739988549866,0.17190468,96375.0,96374.0,0.1282132]
[1739988550885,0.01626268,96375.0,96374.0,0.1282132]
[1739988551092,0.155637,96378.0,96375.0,0.0808]
[1739988551298,0.15,96379.0,96375.0,0.0808]
[1739988551499,0.15,96379.0,96376.0,0.08470527]
[1739988551772,0.01626201,96385.0,96376.0,0.08470527]
[1739988551981,0.155638,96377.0,96376.0,0.08470527]
[1739988552377,0.15,96378.0,96376.0,0.0832]
[1739988552579,0.155638,96377.0,96376.0,0.0832]
[1739988555380,0.155638,96377.0,96376.0,0.0842]
[1739988555592,0.155638,96377.0,96376.0,0.001]
[1739988555788,0.970159,96377.0,96376.0,0.003]
[1739988556485,0.970159,96377.0,96376.0,0.001]
[1739988556691,0.305642,96375.0,96374.0,0.00055657]
[1739988558590,0.306642,96375.0,96374.0,0.00055657]
[1739988559589,0.308642,96375.0,96374.0,0.00055657]
[1739988560534,0.306642,96375.0,96374.0,0.00055657]
[1739988560660,0.308642,96375.0,96374.0,0.00055657]
[1739988560862,0.307642,96375.0,96374.0,0.00055657]
[1739988561277,0.308642,96375.0,96374.0,0.00055657]
[1739988562537,0.751982,96375.0,96374.0,0.00055657]
[1739988562741,2.690793,96375.0,96374.0,0.00055657]
[1739988562893,2.410218,96375.0,96374.0,0.00055657]
[1739988563104,2.192066,96375.0,96374.0,0.00055657]
[1739988563749,2.190066,96375.0,96374.0,0.00055657]
[1739988564085,1.825838,96375.0,96374.0,0.00055657]
[1739988564338,1.558258,96375.0,96374.0,0.00055657]
[1739988564547,1.57373551,96375.0,96374.0,0.00055657]
[1739988564974,1.57573551,96375.0,96374.0,0.00055657]
[1739988565406,1.27737986,96375.0,96374.0,0.00055657]
[1739988565641,1.42573551,96375.0,96374.0,0.00055657]
[1739988566275,1.44199917,96375.0,96374.0,0.00055657]
[1739988567823,1.56242017,96375.0,96374.0,0.00055657]
[1739988568020,1.54007517,96375.0,96374.0,0.00055657]
[1739988568807,0.15565,96370.0,96369.0,0.0004255]
[1739988569014,3.011303,96370.0,96369.0,0.0004255]
[1739988569213,2.37817,96370.0,96369.0,0.0004255]
[1739988570428,2.37817,96370.0,96356.0,0.0004256]
[1739988570429,0.305671,96357.0,96356.0,0.0004256]
[1739988570631,1.467455,96357.0,96356.0,0.0004256]
[1739988570819,0.305671,96357.0,96356.0,0.0004256]
[1739988571176,0.32193716,96357.0,96356.0,0.0004256]
[1739988571382,2.78563416,96357.0,96356.0,0.0004256]
[1739988571995,2.78863416,96357.0,96356.0,0.0004256]
[1739988572342,2.78563416,96357.0,96356.0,0.0004256]
[1739988572558,2.78763416,96357.0,96356.0,0.0004256]
[1739988572759,2.78763416,96357.0,96353.0,7e-05]
[1739988572760,0.305675,96354.0,96353.0,7e-05]
[1739988573001,2.655097,96354.0,96353.0,7e-05]
[1739988573258,2.565903,96354.0,96353.0,7e-05]
[1739988573495,2.507949,96354.0,96353.0,7e-05]
[1739988574484,2.52455724,96354.0,96353.0,7e-05]
[1739988575126,2.53055724,96354.0,96353.0,7e-05]
[1739988575286,2.52755724,96354.0,96353.0,7e-05]
[1739988575704,2.53055724,96354.0,96353.0,7e-05]
[1739988575941,2.52855724,96354.0,96353.0,7e-05]
[1739988576185,2.54482465,96354.0,96353.0,7e-05]
[1739988576403,1.85406865,96354.0,96353.0,7e-05]
[1739988576813,1.46785565,96354.0,96353.0,7e-05]
[1739988576991,1.13462041,96354.0,96353.0,7e-05]
[1739988577213,0.54713141,96354.0,96353.0,0.07757]
[1739988577427,0.02426741,96354.0,96353.0,0.07757]
[1739988577594,0.02426741,96354.0,96353.0,0.12826647]
[1739988577595,0.02026741,96354.0,96353.0,0.12826647]
[1739988577844,0.01926741,96354.0,96353.0,0.12826647]
[1739988578062,0.006,96354.0,96353.0,0.12826647]
[1739988578272,0.003,96354.0,96353.0,0.12826647]
[1739988578471,0.01626571,96365.0,96353.0,0.12826647]
[1739988578876,0.155674,96355.0,96353.0,0.12826647]
[1739988579342,0.155675,96354.0,96353.0,0.12826647]
[1739988587203,0.155675,96354.0,96353.0,0.12869207]
[1739988587860,0.155675,96354.0,96353.0,0.1272956]
[1739988594621,0.155675,96354.0,96353.0,0.1272956]
[1739988596702,0.305675,96354.0,96353.0,0.1272956]
[1739988596830,0.305675,96354.0,96353.0,0.0497956]
[1739988597049,0.305675,96354.0,96353.0,0.0004956]
[1739988597687,1.026061,96354.0,96353.0,0.0004956]
[1739988597892,1.264901,96354.0,96353.0,0.0004956]
[1739988598088,1.28116725,96354.0,96353.0,0.0004956]
[1739988599130,0.88694125,96354.0,96353.0,0.0004956]
[1739988599957,0.89194125,96354.0,96353.0,0.0004956]
[1739988601435,0.89959563,96354.0,96353.0,0.0004956]
[1739988602312,0.91420387,96354.0,96353.0,0.0004956]
[1739988602529,0.91820387,96354.0,96353.0,0.0004956]
[1739988602734,0.90193762,96354.0,96353.0,0.0004956]
[1739988602945,0.89493762,96354.0,96353.0,0.0004956]
[1739988603167,0.90393762,96354.0,96353.0,0.0004956]
[1739988603371,0.89993762,96354.0,96353.0,0.0004956]
[1739988603611,0.15,96353.0,96348.0,0.0004255]
[1739988603822,0.305684,96349.0,96348.0,0.00046904]
[1739988604022,1.792055,96349.0,96348.0,0.00046904]
[1739988604264,2.014067,96349.0,96348.0,0.00046904]
[1739988604456,1.918713,96349.0,96348.0,0.00046904]
[1739988604730,1.93559054,96349.0,96348.0,0.00046904]
[1739988606073,1.95785882,96349.0,96348.0,0.00046904]
[1739988606470,1.95485882,96349.0,96348.0,0.00046904]
[1739988606952,1.23731582,96349.0,96348.0,0.00046904]
[1739988607198,1.23831582,96349.0,96348.0,0.00046904]
[1739988607614,0.34282982,96349.0,96348.0,0.00046904]
[1739988607817,1.54025282,96349.0,96348.0,0.00046904]
[1739988608037,1.53025382,96349.0,96348.0,0.00046904]
[1739988608487,1.53325382,96349.0,96348.0,0.00046904]
[1739988608690,1.63575747,96349.0,96348.0,0.00046904]
[1739988608873,1.63275747,96349.0,96348.0,0.00046904]
[1739988609391,1.63575747,96349.0,96348.0,0.00046904]
[1739988609603,1.63175747,96349.0,96348.0,0.00046904]
[1739988610013,1.63475747,96349.0,96348.0,0.00046904]
[1739988611304,1.51537628,96349.0,96348.0,0.00046904]
[1739988611508,0.17795228,96349.0,96348.0,0.08156904]
[1739988611714,0.207572,96352.0,96348.0,0.12666904]
[1739988611934,0.155684,96349.0,96348.0,0.12821186]
[1739988612318,0.155684,96349.0,96348.0,0.12666904]
[1739988612454,0.157684,96349.0,96348.0,0.12821186]
[1739988612658,0.155684,96349.0,96348.0,0.12821186]
[1739988612912,0.155684,96349.0,96348.0,0.12666904]
[1739988613418,0.157684,96349.0,96348.0,0.12666904]
[1739988613920,0.207576,96351.0,96348.0,0.12666904]
[1739988614083,0.155684,96349.0,96348.0,0.12666904]
[1739988615742,0.155684,96349.0,96348.0,0.12766904]
[1739988616230,0.0008512,96356.0,96349.0,0.0771]
[1739988616441,0.0008512,96356.0,96348.0,0.00146904]
[1739988616442,0.0008512,96356.0,96350.0,0.1305527]
[1739988616653,0.0008512,96356.0,96351.0,0.15010365]
[1739988616854,0.0008512,96356.0,96352.0,0.0831]
[1739988616992,0.0008512,96356.0,96352.0,0.10250365]
[1739988617192,0.0008512,96356.0,96353.0,0.0831]
[1739988618181,0.0008512,96356.0,96355.0,0.0814]
[1739988618821,0.0008512,96356.0,96355.0,0.0804]
[1739988619501,0.0008512,96356.0,96355.0,0.0814]
[1739988621972,0.0008512,96356.0,96355.0,0.0824]
[1739988625666,0.1565232,96356.0,96355.0,0.0824]
[1739988626911,0.0008512,96356.0,96355.0,0.0824]
[1739988628187,0.1565232,96356.0,96355.0,0.0824]
[1739988632450,0.1565232,96356.0,96355.0,0.002]
[1739988632651,0.6230712,96356.0,96355.0,0.002]
[1739988632867,0.2826822,96356.0,96355.0,0.002]
[1739988633075,0.1565232,96356.0,96355.0,0.002]
[1739988633283,0.1565232,96356.0,96355.0,0.0823]
[1739988633493,0.1565232,96356.0,96355.0,0.0813]
[1739988633974,0.1585232,96356.0,96355.0,0.0813]
[1739988634192,0.0008512,96356.0,96355.0,0.0813]
[1739988634396,0.1565232,96356.0,96355.0,0.1268]
[1739988634613,0.1565232,96356.0,96355.0,0.12906357]
[1739988634816,0.1565232,96356.0,96355.0,0.12806357]
[1739988635775,0.1565232,96356.0,96355.0,0.12906357]
[1739988636240,0.2637232,96356.0,96355.0,0.00326357]
[1739988636489,0.4137232,96356.0,96355.0,0.00326357]
[1739988636708,0.4137232,96356.0,96339.0,0.0004254]
[1739988636709,0.155698,96340.0,96339.0,0.0004254]
[1739988638132,0.16632755,96340.0,96339.0,0.0004254]
[1739988641754,0.01062955,96340.0,96339.0,0.0004254]
[1739988641962,0.01062955,96340.0,96339.0,0.0764254]
[1739988642177,0.3249,96365.0,96350.0,0.076]
[1739988642402,0.155678,96353.0,96351.0,0.0455]
[1739988642589,0.207565,96355.0,96351.0,0.0455]
[1739988642819,0.155677,96354.0,96351.0,0.0455]
[1739988643025,0.155679,96352.0,96351.0,0.0455]
[1739988644485,0.155679,96352.0,96351.0,0.0475]
[1739988646399,0.155679,96352.0,96351.0,0.0485]
[1739988656979,0.01055041,96355.0,96351.0,0.0485]
[1739988657203,0.155679,96352.0,96351.0,0.0485]
[1739988657385,0.00098208,96356.0,96351.0,0.0485]
[1739988657574,0.155679,96353.0,96351.0,0.0485]
[1739988657784,0.155679,96352.0,96351.0,0.0485]
[1739988658175,0.01147028,96356.0,96355.0,0.155674]
[1739988658176,0.00098208,96356.0,96355.0,0.155674]
[1739988658326,0.00098208,96356.0,96355.0,0.38607765]
[1739988660420,0.00098208,96356.0,96355.0,0.23040365]
[1739988660842,0.15665408,96356.0,96355.0,0.23040365]
[1739988661049,0.00098208,96356.0,96355.0,0.23040365]
[1739988661469,0.00098208,96356.0,96355.0,0.1279]
[1739988661674,0.15665408,96356.0,96355.0,0.1279]
[1739988664605,0.15665408,96356.0,96355.0,0.045]
[1739988665003,0.15765408,96356.0,96355.0,0.05]
[1739988666028,0.15665408,96356.0,96355.0,0.045]
[1739988666231,0.09436438,96358.0,96355.0,0.047]
[1739988666452,0.155672,96356.0,96355.0,0.045]
[1739988666881,0.155672,96356.0,96355.0,0.047]
[1739988667090,0.207556,96360.0,96355.0,0.047]
[1739988667306,0.03127512,96369.0,96355.0,0.047]
[1739988667517,0.01025163,96369.0,96357.0,0.207561]
[1739988667738,0.155653,96368.0,96358.0,0.10250365]
[1739988667949,0.0008512,96370.0,96358.0,0.10250365]
[1739988667950,0.15566,96364.0,96358.0,0.10250365]
[1739988668130,0.155659,96365.0,96358.0,0.10250365]
[1739988668340,0.207535,96369.0,96358.0,0.10250365]
[1739988668548,0.155667,96359.0,96358.0,0.10250365]
[1739988668759,0.15571068,96359.0,96358.0,0.10250365]
[1739988669393,4.368e-05,96359.0,96358.0,0.10250365]
[1739988669597,0.155671,96357.0,96356.0,0.0822]
[1739988670009,4.368e-05,96359.0,96356.0,0.0822]
[1739988670223,0.155671,96357.0,96356.0,0.0822]
[1739988671045,4.368e-05,96359.0,96356.0,0.0822]
[1739988671261,0.155669,96358.0,96356.0,0.0842]
[1739988671649,4.368e-05,96359.0,96356.0,0.0862]
[1739988672075,0.15567,96358.0,96356.0,0.0862]
[1739988672298,0.155671,96357.0,96356.0,0.0842]
[1739988672509,0.15571068,96359.0,96356.0,0.0822]
[1739988672687,0.15567,96358.0,96356.0,0.0842]
[1739988672940,0.15567,96358.0,96356.0,0.0872]
[1739988673381,0.155671,96357.0,96356.0,0.0872]
[1739988673577,0.15571268,96359.0,96356.0,0.0872]
[1739988673995,0.15571268,96359.0,96356.0,0.0842]
[1739988674200,0.15567,96358.0,96356.0,0.0862]
[1739988674401,0.155671,96357.0,96356.0,0.0842]
[1739988674558,0.155671,96357.0,96356.0,0.0852]
[1739988674761,4.368e-05,96359.0,96356.0,0.0852]
[1739988675238,4.368e-05,96359.0,96357.0,0.00141463]
[1739988676524,4.368e-05,96359.0,96357.0,0.00341463]
[1739988676949,4.368e-05,96359.0,96358.0,0.10250365]
[1739988677242,0.15571068,96359.0,96358.0,0.10391694]
[1739988678622,0.15571068,96359.0,96358.0,0.10491694]
[1739988678822,0.15571068,96359.0,96358.0,0.10691694]
[1739988679027,4.368e-05,96359.0,96358.0,0.10691694]
[1739988680490,0.15571068,96359.0,96358.0,0.10691694]
[1739988680713,4.368e-05,96359.0,96358.0,0.10691694]
[1739988682552,0.00089488,96359.0,96358.0,0.10691694]
[1739988682967,0.15656188,96359.0,96358.0,0.10691694]
[1739988683171,0.15656188,96359.0,96358.0,0.10550365]
[1739988683726,0.00089488,96359.0,96358.0,0.10550365]
[1739988686641,0.155667,96359.0,96358.0,0.10550365]
[1739988686816,0.2083662,96379.0,96358.0,0.10550365]
[1739988687026,0.155665,96361.0,96358.0,0.10550365]
[1739988687417,0.207542,96366.0,96358.0,0.10550365]
[1739988687418,0.155666,96360.0,96358.0,0.10550365]
[1739988687637,0.155667,96359.0,96358.0,0.10350365]
[1739988687912,0.155667,96359.0,96358.0,0.10250365]
[1739988688119,0.155667,96359.0,96358.0,0.10350365]
[1739988688324,0.155665,96361.0,96358.0,0.10250365]
[1739988688516,0.01033404,96369.0,96358.0,0.10250365]
[1739988688770,0.155663,96362.0,96358.0,0.10550365]
[1739988688972,0.155666,96361.0,96358.0,0.10450365]
[1739988689779,0.207531,96371.0,96358.0,0.10250365]
[1739988690203,0.155662,96363.0,96358.0,0.10250365]
[1739988690474,0.155662,96363.0,96358.0,0.10650365]
[1739988690657,0.155664,96361.0,96358.0,0.10250365]
[1739988691085,0.21812135,96371.0,96358.0,0.10650365]
[1739988691259,0.155661,96363.0,96358.0,0.10650365]
[1739988691429,0.155661,96363.0,96358.0,0.10550365]
[1739988691831,0.207544,96365.0,96358.0,0.10650365]
[1739988692032,0.155657,96366.0,96358.0,0.11050365]
[1739988692243,0.155658,96365.0,96358.0,0.10650365]
[1739988692443,0.155659,96364.0,96358.0,0.10650365]
[1739988692639,0.155659,96364.0,96358.0,0.11050365]
[1739988692841,0.01065496,96371.0,96358.0,0.11050365]
[1739988693067,0.15566,96364.0,96358.0,0.11050365]
[1739988693746,0.15566,96364.0,96358.0,0.10650365]
[1739988693966,0.15566,96364.0,96358.0,0.10950365]
[1739988694165,0.155657,96366.0,96358.0,0.10550365]
[1739988694601,0.155654,96368.0,96358.0,0.10850365]
[1739988694843,0.02088833,96374.0,96358.0,0.10250365]
[1739988695064,0.155658,96365.0,96358.0,0.10250365]
[1739988695339,0.0008512,96366.0,96358.0,0.10750365]
[1739988695538,0.363203,96365.0,96358.0,0.10750365]
[1739988695773,0.0008512,96366.0,96358.0,0.10450365]
[1739988695989,0.155667,96359.0,96358.0,0.002]
[1739988696615,0.0008512,96366.0,96357.0,0.0004256]
[1739988696813,0.155667,96359.0,96358.0,0.001]
[1739988697485,0.155666,96360.0,96358.0,0.001]
[1739988697684,0.207547,96364.0,96357.0,0.0004256]
[1739988697886,0.155661,96363.0,96358.0,0.004]
[1739988698335,0.001,96359.0,96358.0,0.008]
[1739988699409,0.0008512,96366.0,96358.0,0.004]
[1739988699834,0.155665,96361.0,96358.0,0.007]
[1739988700051,0.155666,96360.0,96358.0,0.007]
[1739988700261,0.155666,96360.0,96358.0,0.004]
[1739988700467,0.20755,96362.0,96358.0,0.004]
[1739988700679,0.155666,96360.0,96358.0,0.008]
[1739988700885,0.155667,96359.0,96358.0,0.004]
[1739988701088,0.0008512,96366.0,96357.0,0.0004256]
[1739988701300,0.156669,96359.0,96358.0,0.008]
[1739988701502,0.156669,96359.0,96358.0,0.004]
[1739988702150,0.207553,96361.0,96357.0,0.0004256]
[1739988702354,0.155669,96358.0,96357.0,0.0004256]
[1739988702562,0.155669,96358.0,96357.0,0.0024256]
[1739988703451,0.155669,96358.0,96357.0,0.0054256]
[1739988703658,0.155669,96358.0,96357.0,0.0024256]
[1739988704279,0.155669,96358.0,96357.0,0.0064256]
[1739988704630,0.155669,96358.0,96357.0,0.0024256]
[1739988705065,0.155669,96358.0,96357.0,0.0044256]
[1739988706297,0.17596162,96358.0,96357.0,0.0044256]
[1739988707563,0.32256362,96358.0,96357.0,0.0044256]
[1739988709327,0.17596162,96358.0,96357.0,0.0044256]
[1739988709802,0.155659,96364.0,96357.0,0.0794256]
[1739988710002,0.0008512,96366.0,96357.0,0.0794256]
[1739988710225,0.155661,96364.0,96358.0,0.0475]
[1739988710446,0.0008512,96366.0,96358.0,0.0475]
[1739988710622,0.155664,96362.0,96358.0,0.0475]
[1739988711110,0.155666,96360.0,96358.0,0.0475]
[1739988711326,0.155667,96359.0,96358.0,0.0475]
[1739988711715,0.155667,96359.0,96358.0,0.0485]
[1739988713227,0.155667,96359.0,96358.0,0.0495]
[1739988713464,0.155667,96359.0,96358.0,0.0485]
[1739988713675,0.155667,96359.0,96358.0,0.0505]
[1739988721415,0.155667,96359.0,96358.0,0.003]
[1739988721861,0.337567,96359.0,96358.0,0.003]
[1739988722049,1.242205,96359.0,96358.0,0.003]
[1739988722278,0.581706,96359.0,96358.0,0.003]
[1739988722487,0.415669,96359.0,96358.0,0.003]
[1739988722672,0.330439,96359.0,96358.0,0.003]
[1739988723739,0.155667,96359.0,96358.0,0.003]
[1739988729445,0.305667,96359.0,96358.0,0.003]
[1739988729694,4.09480798,96359.0,96358.0,0.003]
[1739988729906,0.305684,96349.0,96348.0,0.0004256]
[1739988730118,2.47800154,96349.0,96348.0,0.0004256]
[1739988730328,2.34856754,96349.0,96348.0,0.0004256]
[1739988730723,2.03943358,96349.0,96348.0,0.0004256]
[1739988730979,1.85665558,96349.0,96348.0,0.0004256]
[1739988731192,1.70171058,96349.0,96348.0,0.0004256]
[1739988732204,0.33882958,96349.0,96348.0,0.0004256]
[1739988732481,2.11569437,96349.0,96348.0,0.0004256]
[1739988732690,2.16213037,96349.0,96348.0,0.0004256]
[1739988732862,2.16613037,96349.0,96348.0,0.0004256]
[1739988733087,2.19433102,96349.0,96348.0,0.0004256]
[1739988733315,2.19033102,96349.0,96348.0,0.0004256]
[1739988733771,2.17406298,96349.0,96348.0,0.0004256]
[1739988734536,2.18173129,96349.0,96348.0,0.0004256]
[1739988734742,2.18473129,96349.0,96348.0,0.0004256]
[1739988735414,2.08222764,96349.0,96348.0,0.0004256]
[1739988736138,0.97666064,96349.0,96348.0,0.0004256]
[1739988736352,0.8089191,96349.0,96348.0,0.0004256]
[1739988736570,0.33375479,96349.0,96348.0,0.0004256]
[1739988737025,0.93629379,96349.0,96348.0,0.0004256]
[1739988737250,0.79688879,96349.0,96348.0,0.0004256]
[1739988740729,0.79288879,96349.0,96348.0,0.0004256]
[1739988741169,0.79588879,96349.0,96348.0,0.0004256]
[1739988741579,0.79288879,96349.0,96348.0,0.0004256]
[1739988741750,0.79588879,96349.0,96348.0,0.0004256]
[1739988744002,0.80352182,96349.0,96348.0,0.0004256]
[1739988745056,0.75052582,96349.0,96348.0,0.0004256]
[1739988745263,0.53479882,96349.0,96348.0,0.0004256]
[1739988745712,0.51140282,96349.0,96348.0,0.0004256]
[1739988745950,1.48110482,96349.0,96348.0,0.0004256]
[1739988746190,1.46970782,96349.0,96348.0,0.0004256]
[1739988747190,1.48597631,96349.0,96348.0,0.0004256]
[1739988747440,1.04341731,96349.0,96348.0,0.0004256]
[1739988747686,0.35565631,96349.0,96348.0,0.0004256]
[1739988747932,1.88610731,96349.0,96348.0,0.0004256]
[1739988748152,2.12191031,96349.0,96348.0,0.0004256]
[1739988748372,1.91131131,96349.0,96348.0,0.0004256]
[1739988748598,1.92818885,96349.0,96348.0,0.0004256]
[1739988749800,0.305698,96340.0,96339.0,0.0004254]
[1739988750043,3.23577234,96340.0,96339.0,0.0004254]
[1739988750305,3.23577234,96340.0,96291.0,0.150159]
[1739988750306,0.0282,96328.0,96291.0,0.000159]
[1739988750561,0.155766,96298.0,96291.0,0.000159]
[1739988750806,0.527162,96298.0,96291.0,0.000159]
[1739988751062,0.27989737,96298.0,96297.0,0.00086193]
[1739988751294,0.44289366,96298.0,96297.0,0.00086193]
[1739988751777,0.44289366,96298.0,96297.0,0.00286193]
[1739988752012,0.44289366,96298.0,96297.0,0.00086193]
[1739988752492,0.44289366,96298.0,96297.0,0.00186193]
[1739988752967,0.46370482,96298.0,96297.0,0.00186193]
[1739988753379,0.551612,96298.0,96297.0,0.00186193]
[1739988753609,0.14433991,96292.0,96291.0,0.000159]
[1739988753750,4.98989191,96292.0,96291.0,0.000159]
[1739988753992,2.03870291,96292.0,96291.0,0.000159]
[1739988754218,1.83880191,96292.0,96291.0,0.000159]
[1739988754440,1.75455091,96292.0,96291.0,0.000159]
[1739988755047,1.48447291,96292.0,96291.0,0.000159]
[1739988755658,1.48247291,96292.0,96291.0,0.000159]
[1739988756099,1.50442238,96292.0,96291.0,0.000159]
[1739988756518,1.50142238,96292.0,96291.0,0.000159]
[1739988756716,1.51770136,96292.0,96291.0,0.000159]
[1739988757095,1.52070136,96292.0,96291.0,0.000159]
[1739988757465,1.51570136,96292.0,96291.0,0.000159]
[1739988757671,1.52670136,96292.0,96291.0,0.000159]
[1739988758260,1.52070136,96292.0,96291.0,0.000159]
[1739988758452,1.51570136,96292.0,96291.0,0.000159]
[1739988758817,1.52070136,96292.0,96291.0,0.000159]
[1739988759046,1.22058545,96292.0,96291.0,0.000159]
[1739988759270,1.37636145,96292.0,96291.0,0.000159]
[1739988760273,1.38236145,96292.0,96291.0,0.000159]
[1739988760687,1.37136145,96292.0,96291.0,0.000159]
[1739988761016,1.37636145,96292.0,96291.0,0.000159]
[1739988761215,1.52836145,96292.0,96291.0,0.000159]
[1739988761390,1.39200545,96292.0,96291.0,0.000159]
[1739988761615,1.07693845,96292.0,96291.0,0.000159]
[1739988763764,1.06065947,96292.0,96291.0,0.000159]
[1739988763941,0.33872547,96292.0,96291.0,0.000159]
[1739988764359,2.35070347,96292.0,96291.0,0.000159]
[1739988764573,2.29768547,96292.0,96291.0,0.000159]
[1739988764764,2.27096147,96292.0,96291.0,0.000159]
[1739988765125,1.85347147,96292.0,96291.0,0.000159]
[1739988766944,1.34520047,96292.0,96291.0,0.000159]
[1739988767085,1.34520047,96292.0,96291.0,0.0005847]
[1739988768152,1.3614792,96292.0,96291.0,0.0005847]
[1739988769749,1.3614792,96292.0,96282.0,0.0149169]
[1739988769750,0.01454085,96290.0,96260.0,0.0791]
[1739988769966,0.15,96280.0,96260.0,0.0791]
[1739988770181,0.155823,96263.0,96262.0,0.0829527]
[1739988771677,0.15625935,96263.0,96262.0,0.0829527]
[1739988772723,0.15625935,96263.0,96262.0,0.1280527]
[1739988774140,0.19416,96263.0,96260.0,0.0791]
[1739988774342,0.155839,96253.0,96252.0,0.0821]
[1739988774779,0.155839,96253.0,96252.0,0.00170741]
[1739988774981,0.15585,96246.0,96245.0,0.0806]
[1739988775953,0.18384153,96246.0,96245.0,0.0806]
[1739988776381,0.15585,96246.0,96245.0,0.0806]
[1739988776606,0.18384153,96246.0,96245.0,0.0806]
[1739988777440,0.15585,96246.0,96245.0,0.0806]
[1739988777915,0.155861,96239.0,96238.0,0.1248]
[1739988778151,0.18385253,96239.0,96238.0,0.1248]
[1739988778593,0.155861,96239.0,96238.0,0.1248]
[1739988778794,0.18385253,96239.0,96238.0,0.1248]
[1739988779066,0.155861,96239.0,96238.0,0.1248]
[1739988779566,0.16868558,96239.0,96238.0,0.1248]
[1739988779865,0.16968558,96239.0,96238.0,0.1248]
[1739988780357,0.16775054,96239.0,96238.0,0.1248]
[1739988780599,0.16875054,96239.0,96238.0,0.1248]
[1739988781472,0.16775054,96239.0,96238.0,0.1248]
[1739988781886,0.16775054,96239.0,96238.0,0.078]
[1739988783692,0.16875054,96239.0,96238.0,0.078]
[1739988784869,0.16875054,96239.0,96232.0,0.0794]
[1739988784870,0.15,96238.0,96232.0,0.0794]
[1739988785019,0.305887,96223.0,96205.0,0.1262]
[1739988785227,0.155923,96201.0,96193.0,0.0794]
[1739988785843,0.02067608,96209.0,96194.0,0.0833782]
[1739988786096,0.155923,96201.0,96194.0,0.0833782]
[1739988786284,0.20785,96223.0,96202.0,0.0794]
[1739988786515,0.155915,96206.0,96204.0,0.0829527]
[1739988786696,0.155915,96206.0,96205.0,0.10250365]
[1739988788974,0.155917,96205.0,96204.0,0.0829527]
[1739988789399,0.15592,96203.0,96202.0,0.0794]
[1739988789634,0.30592,96203.0,96202.0,0.18190365]
[1739988789839,0.30592,96203.0,96202.0,0.0794]
[1739988791174,0.155946,96187.0,96177.0,0.0753]
[1739988791393,0.15596,96178.0,96177.0,0.0753]
[1739988791609,0.155975,96169.0,96168.0,0.0819]
[1739988792034,0.305975,96169.0,96168.0,0.0819]